bitfinex-derivatives/quotes_SOLF0:USTF0_20241212
["timestamp","ask_amount","ask_price","bid_price","bid_amount"]
[1734011090927,0.4226,230.21,230.1,20.53970428]
[1734011091322,0.4226,230.21,230.14,5.1108522]
[1734011091621,0.4226,230.21,230.2,2.1714]
[1734011091921,0.4226,230.21,230.14,5.1108522]
[1734011091922,3.32,230.3,230.14,8.4308522]
[1734011092926,20.53970428,230.29,230.14,5.1108522]
[1734011093424,20.53970428,230.25,230.08,3.32]
[1734011094017,20.53970428,230.25,230.13,5.30735286]
[1734011094223,20.53970428,230.29,230.13,5.30735286]
[1734011094420,4.34235835,230.26,230.16,2.1717]
[1734011094621,4.34235835,230.26,230.13,5.30735286]
[1734011094822,2.17145835,230.26,230.13,5.30735286]
[1734011095017,20.53970428,230.25,230.15,2.1719]
[1734011095221,20.53970428,230.25,230.13,5.30735286]
[1734011095419,20.53970428,230.25,230.08,3.32]
[1734011095617,2.1716,230.19,230.12,2.1722]
[1734011095821,3.32,230.21,230.08,3.32]
[1734011096020,3.32,230.21,230.12,5.10279914]
[1734011096916,2.17145835,230.26,230.12,5.10279914]
[1734011098620,20.53970428,230.25,230.12,5.10279914]
[1734011098822,2.1716,230.19,230.12,7.27489914]
[1734011099021,20.53970428,230.25,230.12,5.10279914]
[1734011099728,2.1713,230.22,230.16,2.1718]
[1734011100021,20.53970428,230.25,230.12,5.10279914]
[1734011100320,20.53970428,230.21,230.07,4.0645]
[1734011100519,3.32,230.2,230.07,4.0645]
[1734011100729,2.1722,230.12,230.07,1.3475]
[1734011100926,20.53970428,230.17,230.07,1.3475]
[1734011101120,4.671,230.2,230.07,1.3475]
[1734011101327,2.1719,230.15,230.07,1.3475]
[1734011101929,2.1717,230.18,230.07,1.3475]
[1734011102126,4.671,230.2,230.07,1.3475]
[1734011102325,20.53970428,230.21,230.07,1.3475]
[1734011102533,3.32,230.23,230.08,3.32]
[1734011102825,3.32,230.26,230.1,20.53970428]
[1734011103327,3.32,230.26,230.11,2.6619]
[1734011103722,3.32,230.28,230.11,2.6619]
[1734011103922,1.351,230.31,230.14,20.53970428]
[1734011104130,5.4905,230.3,230.19,2.1715]
[1734011104331,5.4905,230.3,230.15,3.32]
[1734011104530,3.32,230.3,230.15,3.32]
[1734011104932,20.53970428,230.28,230.15,3.32]
[1734011105237,20.53970428,230.28,230.11,2.6619]
[1734011105428,2.1712,230.23,230.17,2.1717]
[1734011105626,2.1712,230.23,230.11,2.6619]
[1734011106730,20.53970428,230.28,230.11,2.6619]
[1734011107233,2.1709,230.26,230.11,2.6619]
[1734011107634,20.53970428,230.28,230.11,2.6619]
[1734011108135,20.53970428,230.24,230.11,2.6619]
[1734011108333,3.32,230.23,230.11,2.6619]
[1734011109132,5.30218982,230.33,230.14,20.53970428]
[1734011109631,5.14026427,230.36,230.18,20.53970428]
[1734011109828,1.4454,230.38,230.19,4.759]
[1734011110035,3.32,230.37,230.19,4.759]
[1734011110241,3.32,230.37,230.22,20.53970428]
[1734011110432,3.32,230.37,230.23,1.3978]
[1734011110739,23.85970428,230.37,230.23,2.7501]
[1734011110935,23.85970428,230.37,230.23,1.3523]
[1734011112532,2.1704,230.32,230.23,1.3523]
[1734011112934,23.85970428,230.37,230.23,6.6769809]
[1734011113637,3.32,230.37,230.23,6.6769809]
[1734011114836,23.85970428,230.37,230.19,1.439]
[1734011115029,20.53970428,230.37,230.19,1.439]
[1734011115229,3.32,230.36,230.19,1.439]
[1734011115437,3.32,230.36,230.21,5.10110371]
[1734011115837,5.49,230.36,230.31,2.1704]
[1734011116041,5.49,230.36,230.22,20.53970428]
[1734011116042,2.17,230.36,230.22,20.53970428]
[1734011116339,2.17032728,230.38,230.26,20.53970428]
[1734011116639,2.17032728,230.38,230.27,1.433]
[1734011117038,3.32,230.43,230.27,1.433]
[1734011117541,20.53970428,230.41,230.22,1.4546]
[1734011117739,20.53970428,230.37,230.22,1.4546]
[1734011118035,3.32,230.36,230.22,1.4546]
[1734011118545,3.32,230.36,230.22,21.99430428]
[1734011118843,25.62220026,230.45,230.26,20.53970428]
[1734011119135,1.8471,230.47,230.26,20.53970428]
[1734011119136,5.1671,230.47,230.3,20.53970428]
[1734011119341,20.53970428,230.53,230.34,20.53970428]
[1734011119638,3.32,230.51,230.35,2.8127]
[1734011119839,3.32,230.51,230.41,2.1694]
[1734011120036,3.32,230.51,230.35,2.8127]
[1734011120240,3.32,230.51,230.38,20.53970428]
[1734011120543,2.1689151,230.53,230.38,23.85970428]
[1734011121339,2.1689151,230.53,230.38,3.32]
[1734011121645,22.70861938,230.53,230.38,3.32]
[1734011121839,2.1689,230.47,230.41,2.1695]
[1734011122141,22.70861938,230.53,230.35,2.8127]
[1734011122343,22.70861938,230.53,230.42,2.1693]
[1734011122344,2.1686,230.51,230.42,2.1693]
[1734011122537,2.1686,230.51,230.38,20.53970428]
[1734011122942,2.1689151,230.53,230.38,20.53970428]
[1734011123143,2.1689151,230.53,230.35,7.97841289]
[1734011123144,22.70861938,230.53,230.35,7.97841289]
[1734011123641,20.53970428,230.49,230.35,6.61351289]
[1734011123840,3.32,230.48,230.31,1.3698]
[1734011124048,20.53970428,230.45,230.31,1.3698]
[1734011124344,0.4282,230.47,230.27,1.4396]
[1734011124345,20.53970428,230.41,230.27,1.4396]
[1734011124548,20.53970428,230.41,230.24,3.32]
[1734011124549,3.32,230.4,230.26,2.1708]
[1734011124945,2.1704,230.31,230.26,2.1708]
[1734011125145,3.32,230.4,230.27,2.1708]
[1734011125339,20.53970428,230.37,230.23,1.3541]
[1734011125842,20.53970428,230.33,230.18,2.8054]
[1734011126044,2.1709,230.26,230.19,2.1715]
[1734011126252,3.32,230.32,230.16,1.3541]
[1734011126253,20.53970428,230.29,230.16,1.3541]
[1734011126643,3.32,230.32,230.2,2.1714]
[1734011126843,3.32,230.32,230.16,1.3541]
[1734011127246,3.32,230.32,230.27,2.1708]
[1734011127648,3.32,230.32,230.19,1.444]
[1734011127954,3.32,230.32,230.28,2.1707]
[1734011128252,3.32,230.37,230.22,20.53970428]
[1734011128459,3.32,230.37,230.19,1.444]
[1734011128460,23.85970428,230.37,230.19,1.444]
[1734011128757,20.53970428,230.33,230.19,1.444]
[1734011129055,2.1707,230.28,230.19,1.444]
[1734011129246,20.53970428,230.33,230.19,1.444]
[1734011129247,3.32,230.3,230.19,1.444]
[1734011129453,2.1706,230.29,230.19,1.444]
[1734011129953,3.32,230.3,230.19,1.444]
[1734011130145,20.53970428,230.29,230.16,1.3541]
[1734011130345,20.53970428,230.29,230.17,2.17230742]
[1734011130556,2.1711,230.24,230.17,2.17230742]
[1734011130852,20.53970428,230.29,230.17,2.17230742]
[1734011131457,2.1708,230.27,230.21,2.1713]
[1734011131653,20.53970428,230.29,230.17,2.17230742]
[1734011134153,3.32,230.28,230.17,2.17230742]
[1734011134457,2.1708,230.27,230.17,2.17230742]
[1734011134750,3.32,230.28,230.17,2.17230742]
[1734011134958,3.32,230.28,230.2,2.1713]
[1734011135259,3.32,230.28,230.17,2.17230742]
[1734011136159,20.53970428,230.21,230.17,2.17230742]
[1734011136360,3.32,230.2,230.13,0.24058]
[1734011137166,2.172,230.14,230.13,0.24058]
[1734011137357,20.53970428,230.17,229.99,4.127]
[1734011137659,2.1721,230.13,230.04,5.12067888]
[1734011137961,3.32,230.2,230.04,5.12067888]
[1734011138356,3.32,230.19,230.04,5.12067888]
[1734011138560,3.32,230.19,230.06,20.53970428]
[1734011138757,3.32,230.19,230.15,2.1718]
[1734011139059,3.32,230.19,230.06,20.53970428]
[1734011139554,3.32,230.19,230.04,5.12067888]
[1734011139960,5.4915,230.19,230.04,5.12067888]
[1734011140256,3.32,230.19,230.04,5.12067888]
[1734011141057,3.32,230.19,230.05,2.1728]
[1734011141058,2.1722,230.12,230.05,2.1728]
[1734011141354,3.32,230.19,230.04,5.12067888]
[1734011141754,20.53970428,230.17,229.99,4.127]
[1734011142360,2.1724,230.11,230.06,2.1727]
[1734011142662,3.32,230.12,230.03,5.31863694]
[1734011143052,3.32,230.12,230.06,2.1727]
[1734011143261,3.32,230.12,230.03,5.31863694]
[1734011143463,3.32,230.12,229.99,4.127]
[1734011143762,2.1725,230.09,230.03,2.1729]
[1734011143961,3.32,230.12,229.99,4.127]
[1734011144159,3.32,230.12,230.01,5.13557736]
[1734011144358,3.32,230.12,229.99,4.127]
[1734011144553,3.32,230.12,229.9,23.85970428]
[1734011144554,20.53970428,230.09,229.9,23.85970428]
[1734011144860,20.53970428,230.09,229.96,2.1736]
[1734011145264,20.53970428,230.09,229.9,4.2095]
[1734011145560,20.53970428,230.05,229.9,4.2095]
[1734011145863,20.53970428,230.05,229.93,2.174]
[1734011145864,2.1735,229.98,229.93,2.174]
[1734011146059,3.32,230.04,229.9,4.2095]
[1734011146359,20.53970428,230.01,229.9,4.2095]
[1734011146558,3.32,230.04,229.9,9.42988552]
[1734011146862,17.3836,230.17,229.9,9.42988552]
[1734011146863,20.53970428,230.09,229.9,9.42988552]
[1734011147063,20.53970428,230.13,229.94,20.53970428]
[1734011147262,4.342,230.25,229.94,20.53970428]
[1734011147263,3.32,230.12,229.94,20.53970428]
[1734011147655,3.32,230.12,229.9,12.74988552]
[1734011147656,20.53970428,230.21,229.98,20.53970428]
[1734011147864,20.53970428,230.21,229.9,12.74988552]
[1734011147865,20.53970428,230.21,230.02,20.53970428]
[1734011148066,2.1711,230.24,230.17,2.1717]
[1734011148258,3.32,230.27,230.1,20.53970428]
[1734011148573,0.25123,230.3,230.14,20.53970428]
[1734011148757,0.25123,230.3,230.15,2.8373]
[1734011148955,3.32,230.29,230.15,4.298]
[1734011149663,20.53970428,230.26,230.15,2.8592]
[1734011149857,20.53970428,230.22,230.08,5.20881846]
[1734011150059,3.32,230.21,230.08,5.20881846]
[1734011150668,5.4914,230.21,230.13,2.1721]
[1734011150861,3.32,230.21,230.09,1.4388]
[1734011151259,3.32,230.21,230.08,5.20881846]
[1734011151461,3.32,230.21,230.03,1.4066]
[1734011151462,20.53970428,230.18,230.03,1.4066]
[1734011151765,20.53970428,230.18,229.86,5.99525937]
[1734011151766,20.53970428,230.1,229.96,2.7989]
[1734011151965,3.32,230.09,229.97,2.1736]
[1734011152663,3.32,230.09,229.97,7.27059709]
[1734011152865,20.53970428,230.06,229.96,2.7989]
[1734011153170,33.47314549,230.05,229.93,1.4066]
[1734011153368,33.47314549,230.05,229.89,2.7989]
[1734011153569,33.47314549,230.05,229.89,4.2055]
[1734011153864,33.47314549,230.05,229.95,2.1738]
[1734011154165,33.47314549,230.05,229.92,5.32066851]
[1734011154363,2.1733,230.0,229.89,4.2055]
[1734011154563,3.32,230.0,229.93,2.1739]
[1734011154759,3.32,230.0,229.89,4.2055]
[1734011154964,2.1735,229.98,229.92,2.1741]
[1734011155766,3.32,230.0,229.89,2.7989]
[1734011156067,33.47314549,229.97,229.82,1.3324]
[1734011156369,2.174,229.94,229.82,6.60633411]
[1734011156667,33.47314549,229.97,229.82,6.60633411]
[1734011156871,35.64684549,229.97,229.82,6.60633411]
[1734011157063,33.47314549,229.97,229.82,6.60633411]
[1734011157864,2.1738,229.96,229.87,2.1745]
[1734011158065,2.1738,229.96,229.82,6.60633411]
[1734011158066,3.32,230.0,229.85,33.47314549]
[1734011158273,33.47314549,230.05,229.85,33.47314549]
[1734011158274,3.32,230.01,229.85,33.47314549]
[1734011158965,5.4933,230.01,229.93,2.174]
[1734011159161,5.4933,230.01,229.85,33.47314549]
[1734011159162,3.32,230.01,229.85,33.47314549]
[1734011159367,33.47314549,230.05,229.85,33.47314549]
[1734011159571,3.32,230.01,229.85,33.47314549]
[1734011160069,3.32,230.01,229.9,2.1742]
[1734011160070,2.1735,229.98,229.9,2.1742]
[1734011160282,3.32,230.01,229.82,6.60633411]
[1734011160283,36.79314549,230.01,229.82,6.60633411]
[1734011160569,3.32,230.01,229.85,33.47314549]
[1734011160874,3.32,230.07,229.89,33.47314549]
[1734011161078,5.4927,230.07,229.9,4.7685]
[1734011161274,5.4927,230.07,229.93,33.47314549]
[1734011161469,3.32,230.07,229.94,1.3369]
[1734011161669,33.47314549,230.05,229.94,1.3369]
[1734011162170,2.1738,229.96,229.9,2.7822]
[1734011162372,3.32,229.99,229.9,2.7822]
[1734011162571,3.32,229.99,229.96,2.1737]
[1734011162775,33.47314549,230.05,229.9,2.7822]
[1734011162973,3.32,230.04,229.9,2.7822]
[1734011163373,2.1732,230.01,229.9,2.7822]
[1734011163578,3.32,230.04,229.9,2.7822]
[1734011163973,2.1734,230.0,229.93,2.1739]
[1734011164280,33.47314549,230.01,229.83,1.3369]
[1734011164475,2.1739,229.95,229.87,2.1745]
[1734011164670,3.32,229.95,229.84,2.6538]
[1734011165481,3.32,229.95,229.85,33.47314549]
[1734011165671,3.32,229.95,229.84,2.6538]
[1734011166084,2.1742,229.91,229.85,2.1747]
[1734011166281,3.32,229.95,229.84,2.6538]
[1734011166478,2.1741,229.92,229.84,4.8286]
[1734011166681,3.32,229.95,229.84,2.6538]
[1734011166975,2.1744,229.9,229.84,2.6538]
[1734011167180,3.32,229.95,229.84,2.6538]
[1734011167977,33.47314549,230.05,229.85,33.47314549]
[1734011168173,33.47314549,230.09,229.89,33.47314549]
[1734011168379,3.32,230.09,229.9,3.32]
[1734011168576,36.79314549,230.09,229.9,3.32]
[1734011169484,33.47314549,230.04,229.84,36.12694549]
[1734011169679,33.47314549,230.04,229.85,3.32]
[1734011169886,33.47314549,230.0,229.84,2.6538]
[1734011170181,3.32,229.99,229.84,2.6538]
[1734011170878,3.32,229.99,229.84,36.12694549]
[1734011171182,2.1738,229.96,229.84,2.6538]
[1734011171377,3.32,229.99,229.84,2.6538]
[1734011171773,33.47314549,229.96,229.84,2.6538]
[1734011171977,33.47314549,229.92,229.72,33.47314549]
[1734011172178,3.32,229.91,229.77,2.7099]
[1734011172484,33.47314549,229.88,229.69,75.22120011]
[1734011172777,33.47314549,229.88,229.7,4.94051599]
[1734011173078,33.47314549,229.84,229.7,4.1412]
[1734011173279,2.1752,229.81,229.7,4.1412]
[1734011173491,3.32,229.83,229.7,4.1412]
[1734011173778,2.1753,229.8,229.7,4.1412]
[1734011174090,3.32,229.83,229.68,5.22906606]
[1734011174285,33.47314549,229.75,229.59,1.3836]
[1734011174488,33.47314549,229.71,229.59,1.3836]
[1734011174779,4.58,229.7,229.59,1.3836]
[1734011175378,4.58,229.7,229.59,3.5608]
[1734011175379,2.1766,229.66,229.59,3.5608]
[1734011175677,2.1766,229.66,229.59,1.3836]
[1734011175884,4.58,229.7,229.49,2.7576]
[1734011176181,4.58,229.7,229.5,1.3558]
[1734011176376,4.58,229.7,229.54,5.34659077]
[1734011176784,4.58,229.7,229.56,33.47314549]
[1734011177078,2.1758,229.74,229.62,2.1769]
[1734011177281,2.1758,229.74,229.63,2.7365]
[1734011177685,33.47314549,229.75,229.63,2.7365]
[1734011178384,33.47314549,229.71,229.54,5.34659077]
[1734011178689,2.1768,229.63,229.54,2.1776]
[1734011178880,4.58,229.65,229.53,2.8771]
[1734011179282,4.58,229.65,229.49,1.3667]
[1734011179283,33.47314549,229.63,229.49,1.3667]
[1734011180678,2.177,229.62,229.52,2.1778]
[1734011180879,4.58,229.65,229.49,1.3667]
[1734011181082,33.47314549,229.67,229.49,1.3667]
[1734011181283,4.58,229.69,229.52,33.47314549]
[1734011181486,5.29730845,229.7,229.53,4.58]
[1734011182794,38.05314549,229.75,229.53,4.58]
[1734011182984,5.18896053,229.72,229.53,4.58]
[1734011183182,5.18896053,229.72,229.54,0.79999807]
[1734011183384,5.18896053,229.72,229.53,4.58]
[1734011183690,5.18896053,229.72,229.49,1.3667]
[1734011183691,33.47314549,229.67,229.49,1.3667]
[1734011183886,4.58,229.66,229.49,1.3667]
[1734011184083,4.58,229.66,229.55,2.1775]
[1734011184084,2.1767,229.64,229.55,2.1775]
[1734011184281,4.58,229.66,229.49,1.3667]
[1734011184889,33.47314549,229.71,229.52,33.47314549]
[1734011185095,5.18896053,229.72,229.56,33.47314549]
[1734011185394,4.58,229.73,229.57,2.8023]
[1734011186286,33.47314549,229.71,229.57,2.8023]
[1734011186792,2.1767,229.64,229.57,4.9797]
[1734011186993,33.47314549,229.67,229.57,1.4462]
[1734011187190,33.47314549,229.63,229.5,1.3561]
[1734011187395,2.1774,229.57,229.5,1.3561]
[1734011187584,4.58,229.62,229.5,1.3561]
[1734011187789,4.58,229.62,229.49,1.3667]
[1734011189398,33.47314549,229.67,229.49,1.3667]
[1734011189991,2.1768,229.64,229.49,1.3667]
[1734011190188,33.47314549,229.71,229.49,5.9467]
[1734011190390,2.1766,229.65,229.58,2.1772]
[1734011190593,2.1766,229.65,229.49,5.9467]
[1734011190594,33.47314549,229.71,229.49,5.9467]
[1734011190795,4.58,229.7,229.49,5.9467]
[1734011191295,33.47314549,229.67,229.49,5.9467]
[1734011191496,4.58,229.7,229.49,5.9467]
[1734011192089,4.58,229.7,229.52,33.47314549]
[1734011192292,38.65439477,229.75,229.56,33.47314549]
[1734011192592,38.65439477,229.75,229.57,1.3892]
[1734011192788,2.1761,229.71,229.57,1.3892]
[1734011192987,40.83067333,229.75,229.57,1.3892]
[1734011193488,2.1764,229.68,229.61,2.177]
[1734011193688,2.17627856,229.75,229.6,33.47314549]
[1734011193891,2.17627856,229.75,229.64,33.47314549]
[1734011194189,2.17627856,229.75,229.74,2.1758]
[1734011195491,2.17627856,229.75,229.72,2.1759]
[1734011195787,2.17627856,229.75,229.69,1.3208]
[1734011195995,2.17627856,229.75,229.74,2.1758]
[1734011196194,2.17627856,229.75,229.69,6.47435603]
[1734011196195,33.47314549,229.88,229.69,6.47435603]
[1734011196393,2.17514247,229.87,229.69,6.47435603]
[1734011196892,33.47314549,229.84,229.69,1.3208]
[1734011197085,33.47314549,229.8,229.65,1.4252]
[1734011197286,38.05314549,229.8,229.65,1.4252]
[1734011197487,2.1756,229.76,229.66,2.1765]
[1734011197688,33.47314549,229.76,229.65,1.4252]
[1734011198187,33.47314549,229.76,229.62,1.351]
[1734011198491,33.47314549,229.72,229.5,33.47314549]
[1734011198691,33.47314549,229.68,229.56,2.1774]
[1734011199293,33.47314549,229.68,229.51,1.351]
[1734011199496,33.47314549,229.68,229.46,34.88334549]
[1734011199497,33.47314549,229.64,229.46,1.4102]
[1734011199688,2.1771,229.61,229.55,2.1776]
[1734011199891,1.3175,229.63,229.46,34.88334549]
[1734011200296,2.177,229.61,229.54,2.1776]
[1734011200590,1.3175,229.63,229.49,5.32221608]
[1734011200795,3.4944,229.63,229.49,5.32221608]
[1734011200999,2.1769,229.63,229.5,33.47314549]
[1734011201386,2.1769,229.63,229.5,34.79294549]
[1734011201585,4.58,229.67,229.5,34.79294549]
[1734011201788,4.58,229.67,229.5,1.3198]
[1734011201996,4.58,229.67,229.55,2.1776]
[1734011202199,4.58,229.67,229.5,34.79294549]
[1734011202591,6.52147429,229.7,229.54,33.47314549]
[1734011202790,2.1763,229.69,229.55,1.3661]
[1734011203099,4.58,229.72,229.55,1.3661]
[1734011203500,2.1761,229.71,229.59,2.1771]
[1734011203700,33.47314549,229.76,229.6,1.4181]
[1734011203895,2.1762,229.7,229.6,1.4181]
[1734011204800,2.1762,229.7,229.64,2.1767]
[1734011205693,5.14213555,229.73,229.65,2.1766]
[1734011205895,5.14213555,229.73,229.55,1.3661]
[1734011206094,33.47314549,229.72,229.55,1.3661]
[1734011206297,5.14213555,229.73,229.55,1.3661]
[1734011206298,33.47314549,229.68,229.55,1.3661]
[1734011206491,33.47314549,229.68,229.53,1.4036]
[1734011206492,33.47314549,229.64,229.53,1.4036]
[1734011206696,33.47314549,229.64,229.5,1.3198]
[1734011206892,2.1775,229.56,229.5,2.178]
[1734011207303,2.1775,229.56,229.47,2.7734]
[1734011207304,13.04,229.5,229.32,179.31932466]
[1734011207504,66.94629098,229.33,229.3,57.15413359]
[1734011207695,66.94629098,229.33,229.28,240.38172202]
[1734011207696,2.18,229.29,229.28,240.38172202]
[1734011207904,35.65314549,229.29,229.28,208.6698392]
[1734011208098,206.07219908,229.29,229.28,93.87558388]
[1734011208494,252.58534457,229.29,229.28,93.87558388]
[1734011208904,282.99540165,229.29,229.28,93.87558388]
[1734011209206,269.95540165,229.29,229.28,76.19358388]
[1734011209499,236.48225616,229.29,229.28,76.19358388]
[1734011210010,2.1803,229.26,229.24,206.89417169]
[1734011210196,63.88320257,229.25,229.24,92.27144311]
[1734011210399,136.91993982,229.25,229.24,92.27144311]
[1734011210598,136.91993982,229.25,229.24,7.42502745]
[1734011210798,234.30225616,229.25,229.24,7.42502745]
[1734011211099,292.69346693,229.25,229.24,7.42502745]
[1734011211402,297.63346693,229.25,229.24,7.42502745]
[1734011212402,297.63346693,229.25,229.2,236.16743039]
[1734011212403,2.1808,229.21,229.2,236.16743039]
[1734011212607,94.04515626,229.21,229.2,236.16743039]
[1734011212804,124.45521334,229.21,229.2,236.16743039]
[1734011213101,235.76424555,229.21,229.2,236.16743039]
[1734011213300,629.51773088,229.21,229.2,189.36114449]
[1734011213997,629.51773088,229.21,229.2,96.38009228]
[1734011214197,629.51773088,229.21,229.2,47.79949793]
[1734011214402,627.33693088,229.21,229.16,300.47715252]
[1734011214602,2.1812,229.17,229.16,300.47715252]
[1734011214906,370.30330558,229.17,229.16,300.47715252]
[1734011215502,400.71336266,229.17,229.16,300.47715252]
[1734011215805,161.8380051,229.17,229.16,300.47715252]
[1734011216009,103.44679433,229.17,229.16,300.47715252]
[1734011216207,63.88320257,229.17,229.16,300.47715252]
[1734011216600,30.41005708,229.17,229.16,300.47715252]
[1734011216904,38.27229496,229.21,229.16,300.47715252]
[1734011217208,33.47314549,229.25,229.16,300.47715252]
[1734011217604,35.65364549,229.25,229.16,302.65845252]
[1734011217908,4.94,229.27,229.16,300.47715252]
[1734011218103,4.94,229.27,229.17,4.86588575]
[1734011218406,4.94,229.27,229.16,300.47715252]
[1734011218607,4.94,229.27,229.17,4.86374745]
[1734011218799,2.1802,229.28,229.18,4.86365206]
[1734011218998,2.1802,229.28,229.19,4.97922834]
[1734011219206,33.47314549,229.29,229.2,4.97922834]
[1734011219408,33.47314549,229.29,229.21,4.97922834]
[1734011219707,33.47314549,229.29,229.22,4.97922834]
[1734011219906,2.1802,229.28,229.23,4.97922834]
[1734011220111,33.47314549,229.29,229.24,863.14608632]
[1734011220309,33.47314549,229.29,229.24,783.8197532]
[1734011220611,33.47314549,229.29,229.24,738.34766877]
[1734011221005,33.47314549,229.29,229.24,354.4439575]
[1734011221205,33.47314549,229.29,229.22,738.34766877]
[1734011221408,33.47314549,229.24,229.22,354.4439575]
[1734011221609,2.1806,229.23,229.22,37.43464064]
[1734011221805,2.1806,229.23,229.21,177.22197875]
[1734011222107,4.94,229.22,229.18,70.8887915]
[1734011222305,33.47314549,229.19,229.16,300.47715252]
[1734011222901,2.1812,229.17,229.16,300.47715252]
[1734011224506,2.1811,229.19,229.16,300.47715252]
[1734011224708,33.47314549,229.27,229.16,300.47715252]
[1734011224916,5.36147565,229.25,229.16,300.47715252]
[1734011225112,33.47314549,229.31,229.16,300.47715252]
[1734011225113,4.72,229.3,229.16,300.47715252]
[1734011225908,33.47314549,229.36,229.18,33.47314549]
[1734011226115,38.19314549,229.41,229.26,118.07074315]
[1734011226419,38.19314549,229.41,229.29,118.07074315]
[1734011226919,38.19314549,229.41,229.32,117.37301493]
[1734011226920,33.47314549,229.37,229.32,117.37301493]
[1734011227120,33.47314549,229.33,229.3,194.63418826]
[1734011227315,2.1801,229.28,229.27,383.20598305]
[1734011227511,38.19314549,229.33,229.27,290.3417721]
[1734011227714,38.19314549,229.33,229.29,176.17618224]
[1734011228314,38.19314549,229.33,229.27,616.62883974]
[1734011228514,6.2162357,229.36,229.28,472.68259089]
[1734011228718,2.1796,229.34,229.29,403.08613881]
[1734011228918,5.2162357,229.36,229.31,557.9746348]
[1734011229119,5.2162357,229.36,229.31,223.24873119]
[1734011229319,5.2162357,229.36,229.34,46.97907419]
[1734011229522,98.46669939,229.45,229.35,103.34851059]
[1734011229824,5.30416743,229.41,229.37,117.44768547]
[1734011230023,38.77731292,229.41,229.3,175.38119464]
[1734011230216,38.77731292,229.41,229.3,94.18735714]
[1734011231019,2.1792,229.38,229.3,96.36725714]
[1734011231321,5.30416743,229.41,229.3,94.18735714]
[1734011231514,2.1792,229.38,229.3,1.3944]
[1734011231715,5.30416743,229.41,229.3,1.3944]
[1734011231920,38.77731292,229.41,229.3,1.3944]
[1734011232122,33.47314549,229.37,229.18,33.47314549]
[1734011232425,33.47314549,229.33,229.19,1.414]
[1734011233927,33.47314549,229.29,229.17,2.8216]
[1734011234627,33.47314549,229.33,229.17,2.8216]
[1734011234823,2.18,229.3,229.25,2.1804]
[1734011235019,33.47314549,229.41,229.19,4.72]
[1734011235326,5.32318329,229.36,229.19,4.72]
[1734011235629,33.47314549,229.41,229.22,33.47314549]
[1734011235826,4.72,229.42,229.26,33.47314549]
[1734011236121,5.13525881,229.4,229.23,1.4069]
[1734011236731,5.13525881,229.4,229.24,5.16979739]
[1734011237123,2.1794,229.36,229.29,2.18]
[1734011237324,5.13525881,229.4,229.29,2.18]
[1734011237522,5.13525881,229.4,229.24,9.88979739]
[1734011237728,2.1791,229.39,229.24,9.88979739]
[1734011238633,93.74669939,229.45,229.24,9.88979739]
[1734011238826,60.2735539,229.45,229.34,33.47314549]
[1734011239133,0.83333,229.48,229.35,2.679]
[1734011239430,0.83333,229.48,229.35,4.0912]
[1734011240329,0.83333,229.48,229.43,2.1787]
[1734011240930,0.83333,229.48,229.38,33.47314549]
[1734011241935,41.99012386,229.55,229.38,33.47314549]
[1734011241936,26.6360588,229.53,229.42,33.47314549]
[1734011242131,147.01539799,229.57,229.46,33.47314549]
[1734011242331,147.01539799,229.58,229.5,33.47314549]
[1734011242635,147.01539799,229.67,229.54,33.47314549]
[1734011242831,176.41847759,229.7,229.54,33.47314549]
[1734011242832,147.01539799,229.68,229.54,33.47314549]
[1734011243028,149.19169799,229.69,229.54,33.47314549]
[1734011243330,149.19169799,229.69,229.48,4.48]
[1734011243331,4.48,229.71,229.58,33.47314549]
[1734011243529,4.48,229.71,229.54,33.47314549]
[1734011244136,4.48,229.71,229.57,2.1773]
[1734011244335,4.48,229.71,229.54,33.47314549]
[1734011244939,147.01539799,229.68,229.5,37.95314549]
[1734011245231,33.47314549,229.67,229.5,33.47314549]
[1734011245430,2.1775,229.56,229.48,2.1782]